[Event "Late-Titled-Tuesday-Blitz-February-20-2024"]
[Site "Chess.com"]
[Date "2024.02.20"]
[Round "10"]
[White "gmtalentoso"]
[Black "janhelmer03"]
[Result "1/2-1/2"]
[WhiteElo "2451"]
[BlackElo "2296"]
[TimeControl "180+1"]
[EndTime "15:55:33 PST"]
[Termination "Game drawn - insufficient material"]

1. e4 {[%clk 0:02:57.2]} 1... c5 {[%clk 0:02:59.9]} 2. Nf3 {[%clk 0:02:56.4]}
2... d6 {[%clk 0:03:00.4]} 3. Bb5+ {[%clk 0:02:55.4]} 3... Bd7 {[%clk
0:02:59.3]} 4. Bxd7+ {[%clk 0:02:55.4]} 4... Qxd7 {[%clk 0:03:00.2]} 5. O-O
{[%clk 0:02:55]} 5... g6 {[%clk 0:02:58.9]} 6. c3 {[%clk 0:02:52.5]} 6... Nf6
{[%clk 0:02:56.9]} 7. Re1 {[%clk 0:02:51.4]} 7... Bg7 {[%clk 0:02:42.2]} 8. d4
{[%clk 0:02:51.5]} 8... cxd4 {[%clk 0:02:41.2]} 9. cxd4 {[%clk 0:02:52.4]} 9...
O-O {[%clk 0:02:40.7]} 10. Nc3 {[%clk 0:02:51.7]} 10... Nc6 {[%clk 0:02:40.5]}
11. Bg5 {[%clk 0:02:46.1]} 11... Rab8 {[%clk 0:02:22]} 12. Qd2 {[%clk
0:02:41.1]} 12... b5 {[%clk 0:02:13.2]} 13. Nd5 {[%clk 0:02:11.3]} 13... Ne8
{[%clk 0:01:58.1]} 14. Rac1 {[%clk 0:02:07.4]} 14... Kh8 {[%clk 0:01:41.5]} 15.
Bh6 {[%clk 0:01:59.6]} 15... e6 {[%clk 0:01:38]} 16. Bxg7+ {[%clk 0:01:55.3]}
16... Kxg7 {[%clk 0:01:37.6]} 17. Nf4 {[%clk 0:01:51.6]} 17... Nf6 {[%clk
0:01:27.5]} 18. d5 {[%clk 0:01:40.3]} 18... exd5 {[%clk 0:01:25]} 19. Nxd5
{[%clk 0:01:37.3]} 19... Nxd5 {[%clk 0:01:12.9]} 20. Qxd5 {[%clk 0:01:35.5]}
20... Ne7 {[%clk 0:01:12.3]} 21. Qd4+ {[%clk 0:01:32]} 21... Kg8 {[%clk
0:01:12.2]} 22. Red1 {[%clk 0:01:27.7]} 22... Qe6 {[%clk 0:01:07]} 23. Qxd6
{[%clk 0:01:18.8]} 23... Rb6 {[%clk 0:00:55.3]} 24. Qxe6 {[%clk 0:01:12.6]}
24... Rxe6 {[%clk 0:00:56.2]} 25. Rd7 {[%clk 0:01:09.4]} 25... Rxe4 {[%clk
0:00:47.4]} 26. Rxa7 {[%clk 0:01:04.1]} 26... Nf5 {[%clk 0:00:33]} 27. g3 {[%clk
0:01:00.2]} 27... Re2 {[%clk 0:00:30.9]} 28. b4 {[%clk 0:00:52.8]} 28... Rb2
{[%clk 0:00:23.9]} 29. a3 {[%clk 0:00:51.2]} 29... Re8 {[%clk 0:00:24]} 30. Rcc7
{[%clk 0:00:47.5]} 30... Ree2 {[%clk 0:00:22.3]} 31. Rxf7 {[%clk 0:00:20.7]}
31... Rxf2 {[%clk 0:00:21.6]} 32. Nh4 {[%clk 0:00:20.8]} 32... Rxh2 {[%clk
0:00:15.7]} 33. Nxf5 {[%clk 0:00:19.5]} 33... Rbg2+ {[%clk 0:00:15.1]} 34. Kf1
{[%clk 0:00:18.9]} 34... Rf2+ {[%clk 0:00:16]} 35. Ke1 {[%clk 0:00:17.3]} 35...
Rxf5 {[%clk 0:00:14]} 36. Rxf5 {[%clk 0:00:16]} 36... gxf5 {[%clk 0:00:14.6]}
37. Rb7 {[%clk 0:00:12]} 37... Ra2 {[%clk 0:00:09.2]} 38. Rxb5 {[%clk
0:00:12.2]} 38... Rxa3 {[%clk 0:00:09.5]} 39. Rxf5 {[%clk 0:00:12.7]} 39... Rxg3
{[%clk 0:00:10.1]} 40. b5 {[%clk 0:00:11]} 40... Rg2 {[%clk 0:00:10.2]} 41. Kf1
{[%clk 0:00:11.2]} 41... Rb2 {[%clk 0:00:10.6]} 42. Rc5 {[%clk 0:00:10.6]} 42...
Kg7 {[%clk 0:00:10.6]} 43. Kg1 {[%clk 0:00:10.2]} 43... Kg6 {[%clk 0:00:10.7]}
44. Kf1 {[%clk 0:00:10.1]} 44... h5 {[%clk 0:00:11.3]} 45. Kg1 {[%clk
0:00:10.6]} 45... h4 {[%clk 0:00:11.9]} 46. Kh1 {[%clk 0:00:10.9]} 46... h3
{[%clk 0:00:11.8]} 47. Kg1 {[%clk 0:00:09.1]} 47... Kf6 {[%clk 0:00:10]} 48. Kh1
{[%clk 0:00:09.5]} 48... Ke6 {[%clk 0:00:10]} 49. Rh5 {[%clk 0:00:09.9]} 49...
h2 {[%clk 0:00:06.6]} 50. Rh6+ {[%clk 0:00:09.2]} 50... Kd5 {[%clk 0:00:05.4]}
51. Rxh2 {[%clk 0:00:09.7]} 51... Rxh2+ {[%clk 0:00:05.1]} 52. Kxh2 {[%clk
0:00:09.7]} 52... Kc5 {[%clk 0:00:05.6]} 53. Kg3 {[%clk 0:00:10.3]} 53... Kxb5
{[%clk 0:00:05.8]} 1/2-1/2

[Event "Late-Titled-Tuesday-Blitz-February-20-2024"]
[Site "Chess.com"]
[Date "2024.02.20"]
[Round "10"]
[White "HajiyevKanan"]
[Black "Godzillator"]
[Result "1-0"]
[WhiteElo "2481"]
[BlackElo "2321"]
[TimeControl "180+1"]
[EndTime "15:55:34 PST"]
[Termination "HajiyevKanan won on time"]

1. d4 {[%clk 0:03:00.9]} 1... d5 {[%clk 0:02:58.3]} 2. Nf3 {[%clk 0:03:01.8]}
2... e6 {[%clk 0:02:56.4]} 3. c4 {[%clk 0:03:02.5]} 3... Nf6 {[%clk 0:02:56.2]}
4. cxd5 {[%clk 0:03:03.2]} 4... exd5 {[%clk 0:02:56.4]} 5. Nc3 {[%clk
0:03:04.1]} 5... c6 {[%clk 0:02:55.2]} 6. Qc2 {[%clk 0:03:04.5]} 6... Be7 {[%clk
0:02:53.1]} 7. Bf4 {[%clk 0:03:04.5]} 7... O-O {[%clk 0:02:52.8]} 8. e3 {[%clk
0:03:05.1]} 8... Nbd7 {[%clk 0:02:53]} 9. Bd3 {[%clk 0:03:05.5]} 9... Re8 {[%clk
0:02:53.1]} 10. O-O {[%clk 0:03:06]} 10... Nf8 {[%clk 0:02:53.4]} 11. Rab1
{[%clk 0:03:06.4]} 11... Bd6 {[%clk 0:02:52]} 12. Bg5 {[%clk 0:03:05.7]} 12...
h6 {[%clk 0:02:48.2]} 13. Bh4 {[%clk 0:03:04.6]} 13... Bg4 {[%clk 0:02:45.3]}
14. b4 {[%clk 0:03:02.4]} 14... Bxf3 {[%clk 0:02:44.3]} 15. gxf3 {[%clk
0:03:03.3]} 15... a6 {[%clk 0:02:36.9]} 16. a4 {[%clk 0:03:03]} 16... Be7 {[%clk
0:02:27.6]} 17. Kh1 {[%clk 0:02:58.7]} 17... Nh5 {[%clk 0:02:26.4]} 18. Bg3
{[%clk 0:02:54.7]} 18... Nxg3+ {[%clk 0:02:24.7]} 19. hxg3 {[%clk 0:02:55.6]}
19... Bd6 {[%clk 0:02:19.4]} 20. Kg2 {[%clk 0:02:55.5]} 20... Qf6 {[%clk
0:02:11.4]} 21. b5 {[%clk 0:02:51.7]} 21... axb5 {[%clk 0:02:10.5]} 22. axb5
{[%clk 0:02:52.6]} 22... Ne6 {[%clk 0:02:10.5]} 23. bxc6 {[%clk 0:02:52.1]}
23... bxc6 {[%clk 0:02:10.2]} 24. Ne2 {[%clk 0:02:52.7]} 24... Rec8 {[%clk
0:02:01]} 25. Bf5 {[%clk 0:02:48.1]} 25... Rc7 {[%clk 0:01:57.4]} 26. Bxe6
{[%clk 0:02:46.7]} 26... Qxe6 {[%clk 0:01:54.1]} 27. Rb6 {[%clk 0:02:45.9]}
27... Rac8 {[%clk 0:01:52.2]} 28. f4 {[%clk 0:02:40]} 28... Qd7 {[%clk
0:01:51.2]} 29. Qa4 {[%clk 0:02:37.4]} 29... c5 {[%clk 0:01:45]} 30. Qxd7 {[%clk
0:02:37]} 30... Rxd7 {[%clk 0:01:45.1]} 31. Rb5 {[%clk 0:02:15.1]} 31... Bf8
{[%clk 0:01:38]} 32. dxc5 {[%clk 0:02:08.3]} 32... Rxc5 {[%clk 0:01:38.1]} 33.
Rxc5 {[%clk 0:02:08.7]} 33... Bxc5 {[%clk 0:01:38.3]} 34. Rd1 {[%clk 0:02:09.5]}
34... f5 {[%clk 0:01:31.6]} 35. Kf3 {[%clk 0:02:05.1]} 35... Kf7 {[%clk
0:01:31.2]} 36. Rd3 {[%clk 0:02:02.9]} 36... Ke6 {[%clk 0:01:30.1]} 37. Rc3
{[%clk 0:01:40.5]} 37... Kd6 {[%clk 0:01:23.8]} 38. Rd3 {[%clk 0:01:24.5]} 38...
Ke6 {[%clk 0:01:23.4]} 39. Kg2 {[%clk 0:01:23.4]} 39... g5 {[%clk 0:01:21.1]}
40. Kf3 {[%clk 0:01:14.8]} 40... Rd6 {[%clk 0:01:10.3]} 41. Rd1 {[%clk
0:01:14.2]} 41... Ra6 {[%clk 0:01:03.4]} 42. Rh1 {[%clk 0:01:12.9]} 42... Kf7
{[%clk 0:00:58.9]} 43. Rc1 {[%clk 0:01:11.7]} 43... Ra5 {[%clk 0:00:51.6]} 44.
Rd1 {[%clk 0:01:08.5]} 44... Ke6 {[%clk 0:00:49.7]} 45. Rh1 {[%clk 0:01:08.5]}
45... Bf8 {[%clk 0:00:46.6]} 46. Nd4+ {[%clk 0:01:03]} 46... Kf6 {[%clk
0:00:46.9]} 47. Rb1 {[%clk 0:00:56.2]} 47... Bc5 {[%clk 0:00:46.3]} 48. Nc6
{[%clk 0:00:43.6]} 48... Ra2 {[%clk 0:00:34.3]} 49. Re1 {[%clk 0:00:30.4]} 49...
Rd2 {[%clk 0:00:22.1]} 50. Nb8 {[%clk 0:00:28.1]} 50... d4 {[%clk 0:00:20.2]}
51. Nd7+ {[%clk 0:00:27.6]} 51... Kg6 {[%clk 0:00:20]} 52. Nxc5 {[%clk
0:00:27.5]} 52... d3 {[%clk 0:00:19.5]} 53. Nb3 {[%clk 0:00:19.9]} 53... Rb2
{[%clk 0:00:17.4]} 54. Nd4 {[%clk 0:00:18.7]} 54... g4+ {[%clk 0:00:03.9]} 55.
Kg2 {[%clk 0:00:18.8]} 55... d2 {[%clk 0:00:02.8]} 56. Rd1 {[%clk 0:00:19.1]}
56... Kf6 {[%clk 0:00:03.1]} 57. Kf1 {[%clk 0:00:18.6]} 1-0

[Event "Late-Titled-Tuesday-Blitz-February-20-2024"]
[Site "Chess.com"]
[Date "2024.02.20"]
[Round "10"]
[White "Mops_2004"]
[Black "scandalgod"]
[Result "1-0"]
[WhiteElo "2793"]
[BlackElo "2510"]
[TimeControl "180+1"]
[EndTime "15:55:35 PST"]
[Termination "Mops_2004 won by checkmate"]

1. g3 {[%clk 0:03:00.9]} 1... d5 {[%clk 0:02:56.5]} 2. Nf3 {[%clk 0:03:00.7]}
2... Nf6 {[%clk 0:02:54.7]} 3. Bg2 {[%clk 0:03:01]} 3... c6 {[%clk 0:02:52.5]}
4. O-O {[%clk 0:03:00.9]} 4... Bf5 {[%clk 0:02:53.1]} 5. c4 {[%clk 0:03:00.6]}
5... e6 {[%clk 0:02:53.3]} 6. Qb3 {[%clk 0:03:01]} 6... Qb6 {[%clk 0:02:50.6]}
7. d3 {[%clk 0:03:01.6]} 7... Nbd7 {[%clk 0:02:49.4]} 8. cxd5 {[%clk 0:03:01.7]}
8... exd5 {[%clk 0:02:48.2]} 9. Qc2 {[%clk 0:03:01.8]} 9... Be7 {[%clk
0:02:37.2]} 10. Nc3 {[%clk 0:03:01.9]} 10... O-O {[%clk 0:02:36.5]} 11. e4
{[%clk 0:03:02.2]} 11... dxe4 {[%clk 0:02:36.1]} 12. dxe4 {[%clk 0:03:03.1]}
12... Bg6 {[%clk 0:02:35.1]} 13. Nh4 {[%clk 0:03:03.3]} 13... Rfe8 {[%clk
0:02:32.5]} 14. Bf4 {[%clk 0:03:02]} 14... Nc5 {[%clk 0:02:24.3]} 15. Nxg6
{[%clk 0:02:59.1]} 15... hxg6 {[%clk 0:02:23.8]} 16. e5 {[%clk 0:02:57.3]} 16...
Nfd7 {[%clk 0:02:19.9]} 17. Be3 {[%clk 0:02:57]} 17... Qa5 {[%clk 0:02:04.6]}
18. a3 {[%clk 0:02:54.8]} 18... Ne6 {[%clk 0:02:04.3]} 19. f4 {[%clk 0:02:49.3]}
19... Bc5 {[%clk 0:01:59.8]} 20. Bxc5 {[%clk 0:02:46.1]} 20... Qxc5+ {[%clk
0:01:55.8]} 21. Kh1 {[%clk 0:02:44.5]} 21... Nb6 {[%clk 0:01:51.6]} 22. Rac1
{[%clk 0:02:25.7]} 22... Rad8 {[%clk 0:01:49.4]} 23. b4 {[%clk 0:02:12.3]} 23...
Qc4 {[%clk 0:01:42.5]} 24. Ne4 {[%clk 0:02:09.9]} 24... Qxc2 {[%clk 0:01:32.7]}
25. Rxc2 {[%clk 0:02:10.2]} 25... Rd3 {[%clk 0:01:29.9]} 26. Nd6 {[%clk
0:02:02.5]} 26... Re7 {[%clk 0:01:29]} 27. Rf3 {[%clk 0:01:58.6]} 27... Rxf3
{[%clk 0:01:16.3]} 28. Bxf3 {[%clk 0:01:58.5]} 28... Nd4 {[%clk 0:01:15.6]} 29.
Rc3 {[%clk 0:01:53.5]} 29... Nxf3 {[%clk 0:01:15.5]} 30. Rxf3 {[%clk 0:01:53.6]}
30... f6 {[%clk 0:01:10.4]} 31. Re3 {[%clk 0:01:39.2]} 31... Nd5 {[%clk
0:01:09.4]} 32. Re4 {[%clk 0:01:29.2]} 32... Kf8 {[%clk 0:01:06.8]} 33. Kg2
{[%clk 0:01:25.4]} 33... Nc3 {[%clk 0:01:00.1]} 34. Re1 {[%clk 0:01:23.8]} 34...
a6 {[%clk 0:00:53]} 35. Kf3 {[%clk 0:01:20.1]} 35... Nb5 {[%clk 0:00:52.4]} 36.
Nxb5 {[%clk 0:00:32.5]} 36... axb5 {[%clk 0:00:51.9]} 37. e6 {[%clk 0:00:32.8]}
37... Re8 {[%clk 0:00:43.1]} 38. g4 {[%clk 0:00:26.4]} 38... Ke7 {[%clk
0:00:39.1]} 39. f5 {[%clk 0:00:23.6]} 39... Rd8 {[%clk 0:00:34.7]} 40. Re3
{[%clk 0:00:20.5]} 40... Rd4 {[%clk 0:00:31.6]} 41. Kg3 {[%clk 0:00:17.3]} 41...
g5 {[%clk 0:00:25.4]} 42. h4 {[%clk 0:00:11.9]} 42... gxh4+ {[%clk 0:00:24.2]}
43. Kxh4 {[%clk 0:00:12.8]} 43... Rd8 {[%clk 0:00:18.7]} 44. Kh5 {[%clk
0:00:10.7]} 44... Rd4 {[%clk 0:00:17.1]} 45. Rg3 {[%clk 0:00:07.4]} 45... Rd8
{[%clk 0:00:03.6]} 46. Kg6 {[%clk 0:00:07.2]} 46... Kf8 {[%clk 0:00:03.9]} 47.
Rh3 {[%clk 0:00:06.8]} 47... Ke7 {[%clk 0:00:02.7]} 48. Rh7 {[%clk 0:00:06]}
48... Rd4 {[%clk 0:00:03.6]} 49. Rxg7+ {[%clk 0:00:06.3]} 49... Kd6 {[%clk
0:00:04]} 50. Kxf6 {[%clk 0:00:07]} 50... Re4 {[%clk 0:00:03.5]} 51. Rd7# {[%clk
0:00:07]} 1-0

[Event "Late-Titled-Tuesday-Blitz-February-20-2024"]
[Site "Chess.com"]
[Date "2024.02.20"]
[Round "10"]
[White "TenisMaster"]
[Black "Polish_fighter3000"]
[Result "0-1"]
[WhiteElo "2996"]
[BlackElo "3084"]
[TimeControl "180+1"]
[EndTime "15:55:37 PST"]
[Termination "Polish_fighter3000 won on time"]

1. e4 {[%clk 0:03:00.9]} 1... c5 {[%clk 0:02:58.9]} 2. Nf3 {[%clk 0:03:00.3]}
2... d6 {[%clk 0:02:59.5]} 3. Bc4 {[%clk 0:02:55.7]} 3... Nf6 {[%clk 0:02:58.7]}
4. d3 {[%clk 0:02:55.9]} 4... Nc6 {[%clk 0:02:59.1]} 5. c3 {[%clk 0:02:54.7]}
5... e6 {[%clk 0:02:49]} 6. Bb3 {[%clk 0:02:54.4]} 6... b5 {[%clk 0:02:47.3]} 7.
O-O {[%clk 0:02:53.7]} 7... Bb7 {[%clk 0:02:46.7]} 8. Re1 {[%clk 0:02:53.1]}
8... Be7 {[%clk 0:02:34.1]} 9. d4 {[%clk 0:02:50.5]} 9... O-O {[%clk 0:02:32.3]}
10. Bf4 {[%clk 0:02:31.8]} 10... Rc8 {[%clk 0:02:28]} 11. a3 {[%clk 0:02:21.1]}
11... Qb6 {[%clk 0:01:40.5]} 12. Ba2 {[%clk 0:02:11.9]} 12... Rfe8 {[%clk
0:01:37.5]} 13. h3 {[%clk 0:02:09]} 13... h6 {[%clk 0:01:36.3]} 14. e5 {[%clk
0:01:59.6]} 14... dxe5 {[%clk 0:01:33.2]} 15. dxe5 {[%clk 0:02:00.5]} 15... Red8
{[%clk 0:01:17.7]} 16. Qe2 {[%clk 0:02:00.1]} 16... Nd5 {[%clk 0:01:17.7]} 17.
Bg3 {[%clk 0:01:57.3]} 17... b4 {[%clk 0:01:09]} 18. c4 {[%clk 0:01:47.7]} 18...
Nc7 {[%clk 0:01:08.7]} 19. Nbd2 {[%clk 0:01:47.7]} 19... Nd4 {[%clk 0:01:04.9]}
20. Nxd4 {[%clk 0:01:45]} 20... cxd4 {[%clk 0:01:05.8]} 21. axb4 {[%clk
0:01:35.1]} 21... d3 {[%clk 0:01:05.6]} 22. Qg4 {[%clk 0:01:32.4]} 22... Bxb4
{[%clk 0:01:04.1]} 23. Bf4 {[%clk 0:01:31.1]} 23... Qd4 {[%clk 0:00:35.9]} 24.
Qg3 {[%clk 0:01:25.1]} 24... Kh8 {[%clk 0:00:29.1]} 25. Rab1 {[%clk 0:01:15.5]}
25... a5 {[%clk 0:00:25.2]} 26. Red1 {[%clk 0:01:08.4]} 26... a4 {[%clk
0:00:24.4]} 27. Be3 {[%clk 0:01:06.6]} 27... Qd7 {[%clk 0:00:23.5]} 28. Nf3
{[%clk 0:01:04]} 28... Be4 {[%clk 0:00:22.3]} 29. Qf4 {[%clk 0:01:00.5]} 29...
Bh7 {[%clk 0:00:21.1]} 30. Bd2 {[%clk 0:00:56.8]} 30... Na6 {[%clk 0:00:20.3]}
31. Rbc1 {[%clk 0:00:53.7]} 31... Rb8 {[%clk 0:00:17.3]} 32. Bb1 {[%clk
0:00:51.4]} 32... Bxd2 {[%clk 0:00:14.1]} 33. Rxd2 {[%clk 0:00:51.6]} 33... Nc5
{[%clk 0:00:14.5]} 34. Rcd1 {[%clk 0:00:47.9]} 34... Nb3 {[%clk 0:00:05.4]} 35.
Rxd3 {[%clk 0:00:44.1]} 35... Bxd3 {[%clk 0:00:06]} 36. Rxd3 {[%clk 0:00:38.2]}
36... Qe7 {[%clk 0:00:06.4]} 37. Rd6 {[%clk 0:00:37.6]} 37... Nc5 {[%clk
0:00:04.2]} 38. Qd4 {[%clk 0:00:33.7]} 38... Nb7 {[%clk 0:00:04.1]} 39. c5
{[%clk 0:00:33.8]} 39... a3 {[%clk 0:00:04.4]} 40. Qe4 {[%clk 0:00:30.3]} 40...
g6 {[%clk 0:00:04.4]} 41. bxa3 {[%clk 0:00:27.4]} 41... Nxc5 {[%clk 0:00:04.2]}
42. Qc2 {[%clk 0:00:24.8]} 42... Rxd6 {[%clk 0:00:04]} 43. exd6 {[%clk
0:00:21.2]} 43... Qxd6 {[%clk 0:00:04.9]} 44. Qc3+ {[%clk 0:00:18.5]} 44... Kg8
{[%clk 0:00:05.4]} 45. Bc2 {[%clk 0:00:19]} 45... Rd8 {[%clk 0:00:04.5]} 46. h4
{[%clk 0:00:12.5]} 46... Qd5 {[%clk 0:00:04.4]} 47. Qe3 {[%clk 0:00:09.1]} 47...
Qc4 {[%clk 0:00:03.6]} 48. Qxh6 {[%clk 0:00:06.3]} 48... Qxc2 {[%clk 0:00:02.5]}
49. Ng5 {[%clk 0:00:06.5]} 49... Qc1+ {[%clk 0:00:02.7]} 50. Kh2 {[%clk
0:00:06]} 50... Qf4+ {[%clk 0:00:03.4]} 51. Kh3 {[%clk 0:00:05.3]} 51... Qf6
{[%clk 0:00:02.8]} 52. Qh7+ {[%clk 0:00:03.5]} 52... Kf8 {[%clk 0:00:03.3]} 0-1

[Event "Late-Titled-Tuesday-Blitz-February-20-2024"]
[Site "Chess.com"]
[Date "2024.02.20"]
[Round "10"]
[White "wild3000"]
[Black "nindjaxx8"]
[Result "1/2-1/2"]
[WhiteElo "2403"]
[BlackElo "2598"]
[TimeControl "180+1"]
[EndTime "15:55:41 PST"]
[Termination "Game drawn - insufficient material"]

1. d4 {[%clk 0:00:41.3]} 1... d5 {[%clk 0:02:57.8]} 2. e3 {[%clk 0:00:42.2]}
2... Nf6 {[%clk 0:02:57.9]} 3. Nf3 {[%clk 0:00:43.1]} 3... e6 {[%clk 0:02:58.4]}
4. Be2 {[%clk 0:00:43.5]} 4... Be7 {[%clk 0:02:59.1]} 5. O-O {[%clk 0:00:44.4]}
5... O-O {[%clk 0:02:59.8]} 6. b3 {[%clk 0:00:45]} 6... b6 {[%clk 0:03:00.7]} 7.
Bb2 {[%clk 0:00:45.5]} 7... Bb7 {[%clk 0:03:01.5]} 8. c4 {[%clk 0:00:46.1]} 8...
Nbd7 {[%clk 0:03:02.2]} 9. Nbd2 {[%clk 0:00:46.3]} 9... c5 {[%clk 0:03:02.2]}
10. Ne5 {[%clk 0:00:46.4]} 10... Ne4 {[%clk 0:03:01.7]} 11. Nxe4 {[%clk
0:00:46.3]} 11... dxe4 {[%clk 0:03:02.1]} 12. Nxd7 {[%clk 0:00:46.3]} 12... Qxd7
{[%clk 0:03:02]} 13. dxc5 {[%clk 0:00:46.2]} 13... Qxd1 {[%clk 0:02:56.8]} 14.
Rfxd1 {[%clk 0:00:47.1]} 14... Bxc5 {[%clk 0:02:57.5]} 15. Rd7 {[%clk
0:00:42.7]} 15... Bc6 {[%clk 0:02:47.8]} 16. Rc7 {[%clk 0:00:42.5]} 16... Rfc8
{[%clk 0:02:39.9]} 17. Rxc8+ {[%clk 0:00:42.2]} 17... Rxc8 {[%clk 0:02:40.8]}
18. Rd1 {[%clk 0:00:42.1]} 18... a5 {[%clk 0:02:41.4]} 19. Kf1 {[%clk
0:00:41.5]} 19... h6 {[%clk 0:02:40.8]} 20. h4 {[%clk 0:00:40.6]} 20... a4
{[%clk 0:02:37.5]} 21. Bc3 {[%clk 0:00:37.5]} 21... axb3 {[%clk 0:02:30.2]} 22.
axb3 {[%clk 0:00:38.4]} 22... Be7 {[%clk 0:02:29.3]} 23. Ra1 {[%clk 0:00:33.2]}
23... Bxh4 {[%clk 0:02:27.7]} 24. Ra6 {[%clk 0:00:31.5]} 24... Bd8 {[%clk
0:02:26.5]} 25. Bd4 {[%clk 0:00:29.1]} 25... Bb7 {[%clk 0:02:21.7]} 26. Ra7
{[%clk 0:00:28.2]} 26... Bc6 {[%clk 0:02:21.7]} 27. Ra6 {[%clk 0:00:25.4]} 27...
Rb8 {[%clk 0:02:17.7]} 28. b4 {[%clk 0:00:22.8]} 28... Bd7 {[%clk 0:02:11]} 29.
Be5 {[%clk 0:00:19.7]} 29... Rc8 {[%clk 0:02:10.5]} 30. b5 {[%clk 0:00:17.8]}
30... Bxb5 {[%clk 0:01:58.8]} 31. cxb5 {[%clk 0:00:14.2]} 31... Rc1+ {[%clk
0:01:59.7]} 32. Bd1 {[%clk 0:00:14.4]} 32... Rxd1+ {[%clk 0:02:00.6]} 33. Ke2
{[%clk 0:00:14.9]} 33... Rd5 {[%clk 0:02:01.5]} 34. Bd4 {[%clk 0:00:13]} 34...
Kh7 {[%clk 0:01:58.4]} 35. Bxb6 {[%clk 0:00:09.3]} 35... Be7 {[%clk 0:01:51.1]}
36. Bd4 {[%clk 0:00:08.3]} 36... Rxb5 {[%clk 0:01:48.3]} 37. Ra7 {[%clk
0:00:09.2]} 37... Bf6 {[%clk 0:01:41]} 38. Rxf7 {[%clk 0:00:10.1]} 38... Bxd4
{[%clk 0:01:40.2]} 39. exd4 {[%clk 0:00:11]} 39... Kg6 {[%clk 0:01:40.8]} 40.
Rd7 {[%clk 0:00:10]} 40... Kf6 {[%clk 0:01:39.9]} 41. Ke3 {[%clk 0:00:10]} 41...
Rb2 {[%clk 0:01:39.2]} 42. Rd6 {[%clk 0:00:09.1]} 42... Kf5 {[%clk 0:01:35.8]}
43. Rd7 {[%clk 0:00:08.9]} 43... g5 {[%clk 0:01:35.2]} 44. g4+ {[%clk
0:00:08.4]} 44... Kxg4 {[%clk 0:01:34.7]} 45. Kxe4 {[%clk 0:00:09.3]} 45... Re2+
{[%clk 0:01:32.4]} 46. Kd3 {[%clk 0:00:08.8]} 46... Rxf2 {[%clk 0:01:33.3]} 47.
Re7 {[%clk 0:00:09.2]} 47... Rf6 {[%clk 0:01:33.4]} 48. Ke4 {[%clk 0:00:09]}
48... h5 {[%clk 0:01:34]} 49. Ke5 {[%clk 0:00:08.8]} 49... Rh6 {[%clk
0:01:34.1]} 50. Rxe6 {[%clk 0:00:07.6]} 50... Rxe6+ {[%clk 0:01:34.2]} 51. Kxe6
{[%clk 0:00:07.8]} 51... h4 {[%clk 0:01:35.1]} 52. d5 {[%clk 0:00:08.6]} 52...
h3 {[%clk 0:01:35.7]} 53. d6 {[%clk 0:00:09.5]} 53... h2 {[%clk 0:01:36.4]} 54.
d7 {[%clk 0:00:10.4]} 54... h1=Q {[%clk 0:01:37]} 55. d8=Q {[%clk 0:00:11.3]}
55... Qe4+ {[%clk 0:01:36.7]} 56. Kf6 {[%clk 0:00:09.7]} 56... Qf5+ {[%clk
0:01:36.5]} 57. Kg7 {[%clk 0:00:08.8]} 57... Kh4 {[%clk 0:01:35.8]} 58. Kh6
{[%clk 0:00:08.1]} 58... Qf4 {[%clk 0:01:30.9]} 59. Qe7 {[%clk 0:00:07.5]} 59...
Kg4 {[%clk 0:01:30.4]} 60. Qe2+ {[%clk 0:00:07.4]} 60... Kf5 {[%clk 0:01:28.2]}
61. Qd3+ {[%clk 0:00:06.5]} 61... Kf6 {[%clk 0:01:26.1]} 62. Qc3+ {[%clk
0:00:06]} 62... Kf5 {[%clk 0:01:23.8]} 63. Qd3+ {[%clk 0:00:05.9]} 63... Kg4
{[%clk 0:01:24.4]} 64. Qe2+ {[%clk 0:00:05.9]} 64... Kh4 {[%clk 0:01:24.6]} 65.
Qe1+ {[%clk 0:00:05.2]} 65... Kh3 {[%clk 0:01:24.3]} 66. Qc3+ {[%clk 0:00:03.7]}
66... Kg2 {[%clk 0:01:18.1]} 67. Qc2+ {[%clk 0:00:02.6]} 67... Kf3 {[%clk
0:01:08.9]} 68. Qd3+ {[%clk 0:00:03.5]} 68... Kf2 {[%clk 0:01:09]} 69. Qc2+
{[%clk 0:00:03.5]} 69... Ke1 {[%clk 0:01:09.5]} 70. Qb1+ {[%clk 0:00:03.6]}
70... Ke2 {[%clk 0:01:10]} 71. Qc2+ {[%clk 0:00:03.9]} 71... Ke3 {[%clk
0:01:10.5]} 72. Qc1+ {[%clk 0:00:03.8]} 72... Ke4 {[%clk 0:01:11.1]} 73. Qc4+
{[%clk 0:00:03.9]} 73... Ke5 {[%clk 0:01:11.1]} 74. Qc7+ {[%clk 0:00:03.9]}
74... Kf6 {[%clk 0:01:09.5]} 75. Qc6+ {[%clk 0:00:03.9]} 75... Kf5 {[%clk
0:01:09.8]} 76. Qg6+ {[%clk 0:00:04]} 76... Kg4 {[%clk 0:01:09.8]} 77. Qh5+
{[%clk 0:00:04.4]} 77... Kf5 {[%clk 0:01:09.4]} 78. Qg6+ {[%clk 0:00:04.7]}
78... Kg4 {[%clk 0:01:10]} 79. Qh5+ {[%clk 0:00:05.1]} 79... Kg3 {[%clk
0:01:10.7]} 80. Qxg5+ {[%clk 0:00:05.4]} 80... Qxg5+ {[%clk 0:01:11]} 81. Kxg5
{[%clk 0:00:06.3]} 1/2-1/2